lending/lending_fUSD_20250429
["ID","MTS","AMOUNT","RATE_DAILY","PERIOD"]
[359353166,1745949064462,-557.05,0.00028767,2]
[359353167,1745949064472,-470.0,0.00028767,2]
[359353168,1745949064482,-470.0,0.00028767,2]
[359353169,1745949064491,-531.21,0.00028767,2]
[359353170,1745949064501,-470.0,0.00028767,2]
[359353171,1745949064510,-488.6,0.00028767,2]
[359353172,1745949064519,-636.94,0.00028767,2]
[359353173,1745949064529,-1144.88,0.00028767,2]
[359353174,1745949064539,-470.0,0.00028767,2]
[359353175,1745949064548,-624.4,0.00028767,2]
[359353176,1745949064558,-650.35,0.00028767,2]
[359353177,1745949064568,-470.0,0.00028767,2]
[359353178,1745949064578,-673.11,0.00028767,2]
[359353179,1745949064588,-470.0,0.00028767,2]
[359353180,1745949064597,-470.0,0.00028767,2]
[359353181,1745949064607,-505.37052696,0.00028767,2]
[359353182,1745949064617,-472.75,0.00028767,2]
[359353183,1745949064627,-470.0,0.00028767,2]
[359353184,1745949064637,-470.0,0.00028767,2]
[359353185,1745949064648,-6481.15,0.00028767,2]
[359353186,1745949064658,-505.43,0.00028767,2]
[359353187,1745949064667,-470.0,0.00028767,2]
[359353188,1745949064677,-470.0,0.00028767,2]
[359353189,1745949064687,-470.0,0.00028767,2]
[359353190,1745949064697,-470.0,0.00028767,2]
[359353191,1745949064707,-61295.82,0.00028767,2]
[359353192,1745949064717,-482.94,0.00028767,2]
[359353193,1745949064727,-606.96,0.00028767,2]
[359353194,1745949064738,-470.0,0.00028767,2]
[359353195,1745949064747,-470.0,0.00028767,2]
[359353196,1745949064757,-470.0,0.00028767,2]
[359353197,1745949064767,-470.0,0.00028767,2]
[359353198,1745949064776,-470.0,0.00028767,2]
[359353199,1745949064785,-586.56,0.00028767,2]
[359353200,1745949064794,-1001.6,0.00028767,2]
[359353201,1745949064803,-470.0,0.00028767,2]
[359353202,1745949064813,-470.0,0.00028767,2]
[359353203,1745949064823,-470.0,0.00028767,2]
[359353204,1745949064832,-7239.44,0.00028767,2]
[359353205,1745949064842,-470.0,0.00028767,2]
[359353206,1745949064851,-610.17,0.00028767,2]
[359353207,1745949064862,-470.0,0.00028767,2]
[359353208,1745949064871,-470.0,0.00028767,2]
[359353209,1745949064881,-6805.43,0.00028767,2]
[359353210,1745949064890,-2927.0,0.00028767,2]
[359353211,1745949064900,-470.0,0.00028767,2]
[359353212,1745949064910,-470.0,0.00028767,2]
[359353213,1745949064920,-440.4,0.00028767,2]
[359353214,1745949064930,-151.0,0.00028774,7]
[359353215,1745949064939,-151.0,0.00028774,7]
[359353216,1745949064949,-1097.76173594,0.00028774,2]
[359353217,1745949064958,-2200.0,0.000289,10]
[359353218,1745949064968,-223.0315306,0.00028909,2]
[359353219,1745949064978,-2082.1308888,0.00028969,8]
[359353220,1745949064988,-1141.1364496,0.00028997,2]
[359353221,1745949064998,-1030.31813922,0.00028997,2]
[359353222,1745949065007,-3402.46960673,0.00029012,2]
[359353223,1745949065018,-236.9,0.00029039,2]
[359353224,1745949065027,-3823.23,0.0002904,2]
[359353225,1745949065038,-2052.75,0.0002904,2]
[359353226,1745949065047,-2047.07,0.0002904,2]
[359353227,1745949065057,-568.59,0.0002904,2]
[359353228,1745949065067,-500.0,0.0002904,2]
[359353229,1745949065076,-500.0,0.0002904,2]
[359353230,1745949065087,-519.67,0.00029041,2]
[359353231,1745949065096,-498.52,0.00029041,2]
[359353232,1745949065107,-470.0,0.00029041,2]
[359353233,1745949065117,-470.0,0.00029041,2]
[359353234,1745949065126,-470.0,0.00029041,2]
[359353235,1745949065136,-470.0,0.00029041,2]
[359353236,1745949065145,-537.97,0.00029041,2]
[359353237,1745949065155,-470.0,0.00029041,2]
[359353238,1745949065164,-298.37570475,0.00029041,2]
[359353239,1745949065173,-470.0,0.00029041,2]
[359353240,1745949065183,-470.0,0.00029041,2]
[359353241,1745949065192,-470.0,0.00029041,2]
[359353242,1745949065201,-470.0,0.00029041,2]
[359353243,1745949065211,-1113.6,0.00029041,2]
[359353244,1745949065222,-470.0,0.00029041,2]
[359353245,1745949065233,-611.04,0.00029041,2]
[359353246,1745949065243,-470.0,0.00029041,2]
[359353247,1745949065252,-447.81378828,0.00029041,2]
[359353248,1745949065263,-470.0,0.00029041,2]
[359353249,1745949065273,-631.2,0.00029041,2]
[359353250,1745949065284,-564.79,0.00029041,2]
[359353251,1745949065294,-668.5,0.00029041,2]
[359353252,1745949065304,-826.62,0.00029041,2]
[359353253,1745949065313,-470.0,0.00029041,2]
[359353254,1745949065322,-470.0,0.00029041,2]
[359353255,1745949065332,-470.0,0.00029041,2]
[359353256,1745949065342,-470.0,0.00029041,2]
[359353257,1745949065353,-800.64,0.00029041,2]
[359353258,1745949065365,-470.0,0.00029041,2]
[359353259,1745949065375,-470.0,0.00029041,2]
[359353260,1745949065384,-502.1,0.00029041,2]
[359353261,1745949065394,-470.0,0.00029041,2]
[359353262,1745949065403,-470.0,0.00029041,2]
[359353263,1745949065414,-470.0,0.00029041,2]
[359353264,1745949065425,-2160.32,0.00029041,2]
[359353265,1745949065435,-470.0,0.00029041,2]
[359353266,1745949065443,-470.0,0.00029041,2]
[359353267,1745949065453,-1312.33,0.00029041,2]
[359353268,1745949065462,-470.0,0.00029041,2]
[359353269,1745949065471,-548.44,0.00029041,2]
[359353270,1745949065480,-2312.86,0.00029041,2]
[359353271,1745949065489,-470.0,0.00029041,2]
[359353272,1745949065498,-249.00252163,0.00029041,2]
[359353273,1745949065508,-470.0,0.00029041,2]
[359353274,1745949065518,-470.0,0.00029041,2]
[359353275,1745949065527,-484.25,0.00029041,2]
[359353276,1745949065536,-470.0,0.00029041,2]
[359353277,1745949065546,-470.0,0.00029041,2]
[359353278,1745949065556,-470.0,0.00029041,2]
[359353279,1745949065566,-470.0,0.00029041,2]
[359353280,1745949065575,-470.0,0.00029041,2]
[359353281,1745949065584,-470.0,0.00029041,2]
[359353282,1745949065594,-470.0,0.00029041,2]
[359353283,1745949065603,-5959.741954,0.00029041,2]
[359353284,1745949065614,-470.0,0.00029041,2]
[359353285,1745949065624,-470.0,0.00029041,2]
[359353286,1745949065634,-470.0,0.00029041,2]
[359353287,1745949065643,-470.0,0.00029041,2]
[359353288,1745949065652,-470.0,0.00029041,2]
[359353289,1745949065662,-470.0,0.00029041,2]
[359353290,1745949065671,-470.0,0.00029041,2]
[359353291,1745949065680,-181.21516517,0.00029041,2]
[359353292,1745949065690,-470.0,0.00029041,2]
[359353293,1745949065699,-659.334822,0.00029041,2]
[359353294,1745949065708,-236.35006183,0.00029041,2]
[359353295,1745949065717,-657.74,0.00029041,2]
[359353296,1745949065727,-486.33,0.00029041,2]
[359353297,1745949065736,-470.0,0.00029041,2]
[359353298,1745949065745,-470.0,0.00029041,2]
[359353299,1745949065755,-470.0,0.00029041,2]
[359353300,1745949065764,-437.515976,0.00029041,2]
[359353301,1745949065773,-470.0,0.00029041,2]
[359353302,1745949065783,-470.0,0.00029041,2]
[359353303,1745949065792,-542.45,0.00029041,2]
[359353304,1745949065802,-656.69,0.00029041,2]
[359353305,1745949065812,-552.91,0.00029041,2]
[359353306,1745949065821,-470.0,0.00029041,2]
[359353307,1745949065831,-470.0,0.00029041,2]
[359353308,1745949065841,-470.0,0.00029041,2]
[359353309,1745949065851,-610.66,0.00029041,2]
[359353310,1745949065861,-470.0,0.00029041,2]
[359353311,1745949065871,-470.0,0.00029041,2]
[359353312,1745949065881,-558.47,0.00029041,2]
[359353313,1745949065891,-471.31,0.00029041,2]
[359353314,1745949065900,-1049.74,0.00029041,2]
[359353315,1745949065910,-164.068496,0.00029041,2]
[359353316,1745949065920,-470.0,0.00029041,2]
[359353317,1745949065929,-470.0,0.00029041,2]
[359353318,1745949065939,-566.36,0.00029041,2]
[359353319,1745949065949,-470.0,0.00029041,2]
[359353320,1745949065959,-470.0,0.00029041,2]
[359353321,1745949065969,-534.78,0.00029041,2]
[359353322,1745949065978,-563.33,0.00029041,2]
[359353323,1745949065987,-372.483872,0.00029041,2]
[359353324,1745949065997,-470.0,0.00029041,2]
[359353325,1745949066007,-470.0,0.00029041,2]
[359353326,1745949066018,-470.0,0.00029041,2]
[359353327,1745949066028,-557.82,0.00029041,2]
[359353328,1745949066041,-1537.22,0.00029041,2]
[359353329,1745949066051,-470.0,0.00029041,2]
[359353330,1745949066060,-496.59,0.00029041,2]
[359353331,1745949066069,-470.0,0.00029041,2]
[359353332,1745949066079,-470.0,0.00029041,2]
[359353333,1745949066088,-652.05,0.00029041,2]
[359353334,1745949066097,-1146.41,0.00029041,2]
[359353335,1745949066109,-579.71,0.00029041,2]
[359353336,1745949066119,-470.0,0.00029041,2]
[359353337,1745949066128,-470.0,0.00029041,2]
[359353338,1745949066138,-470.0,0.00029041,2]
[359353339,1745949066148,-470.0,0.00029041,2]
[359353340,1745949066157,-704.42,0.00029041,2]
[359353341,1745949066167,-470.0,0.00029041,2]
[359353342,1745949066176,-470.0,0.00029041,2]
[359353343,1745949066186,-470.0,0.00029041,2]
[359353344,1745949066195,-470.0,0.00029041,2]
[359353345,1745949066205,-470.0,0.00029041,2]
[359353346,1745949066215,-470.0,0.00029041,2]
[359353347,1745949066225,-470.0,0.00029041,2]
[359353348,1745949066235,-503.38208778,0.00029041,2]
[359353349,1745949066245,-625.71,0.00029041,2]
[359353350,1745949066255,-2279.31,0.00029041,2]
[359353351,1745949066264,-470.0,0.00029041,2]
[359353352,1745949066274,-470.0,0.00029041,2]
[359353353,1745949066283,-470.0,0.00029041,2]
[359353354,1745949066292,-544.48,0.00029041,2]
[359353355,1745949066302,-904.77,0.00029041,2]
[359353356,1745949066312,-1788.53,0.00029041,2]
[359353357,1745949066321,-510.11,0.00029041,2]
[359353358,1745949066331,-470.0,0.00029041,2]
[359353359,1745949066340,-470.0,0.00029041,2]
[359353360,1745949066350,-470.0,0.00029041,2]
[359353361,1745949066360,-685.59,0.00029041,2]
[359353362,1745949066370,-470.0,0.00029041,2]
[359353363,1745949066379,-470.0,0.00029041,2]
[359353364,1745949066389,-539.63,0.00029041,2]
[359353365,1745949066399,-470.0,0.00029041,2]
[359353366,1745949066409,-1581.86,0.00029041,2]
[359353367,1745949066419,-470.0,0.00029041,2]
[359353368,1745949066428,-470.0,0.00029041,2]
[359353369,1745949066438,-703.7,0.00029041,2]
[359353370,1745949066447,-470.0,0.00029041,2]
[359353371,1745949066457,-2163.53,0.00029041,2]
[359353372,1745949066466,-515.86,0.00029041,2]
[359353373,1745949066475,-470.0,0.00029041,2]
[359353374,1745949066485,-470.0,0.00029041,2]
[359353375,1745949066494,-497.34836042,0.00029041,2]
[359353376,1745949066505,-1020.49,0.00029041,2]
[359353377,1745949066514,-470.0,0.00029041,2]
[359353378,1745949066524,-716.59,0.00029041,2]
[359353379,1745949066533,-264.47493561,0.00029041,2]
[359353380,1745949066542,-470.0,0.00029041,2]
[359353381,1745949066551,-470.0,0.00029041,2]
[359353382,1745949066561,-470.0,0.00029041,2]
[359353383,1745949066570,-490.92,0.00029041,2]
[359353384,1745949066580,-470.0,0.00029041,2]
[359353385,1745949066589,-2329.69,0.00029041,2]
[359353386,1745949066599,-470.0,0.00029041,2]
[359353387,1745949066609,-470.0,0.00029041,2]
[359353388,1745949066619,-765.88,0.00029041,2]
[359353389,1745949066628,-470.0,0.00029041,2]
[359353390,1745949066637,-470.0,0.00029041,2]
[359353391,1745949066647,-470.0,0.00029041,2]
[359353392,1745949066657,-568.19,0.00029041,2]
[359353393,1745949066669,-1203.42,0.00029041,2]
[359353394,1745949066679,-645.19,0.00029041,2]
[359353395,1745949066688,-970.99,0.00029041,2]
[359353396,1745949066697,-901.28,0.00029041,2]
[359353397,1745949066706,-470.0,0.00029041,2]
[359353398,1745949066716,-701.64,0.00029041,2]
[359353399,1745949066726,-200.19737425,0.00029041,2]
[359353400,1745949066736,-470.0,0.00029041,2]
[359353401,1745949066746,-470.0,0.00029041,2]
[359353402,1745949066756,-470.0,0.00029041,2]
[359353403,1745949066766,-1092.53,0.00029041,2]
[359353404,1745949066776,-470.0,0.00029041,2]
[359353405,1745949066785,-470.0,0.00029041,2]
[359353406,1745949066794,-470.0,0.00029041,2]
[359353407,1745949066804,-470.0,0.00029041,2]
[359353408,1745949066814,-903.38,0.00029041,2]
[359353409,1745949066823,-470.0,0.00029041,2]
[359353410,1745949066833,-1736.45,0.00029041,2]
[359353411,1745949066842,-470.0,0.00029041,2]
[359353412,1745949066852,-1436.64,0.00029041,2]
[359353413,1745949066861,-559.81,0.00029041,2]
[359353414,1745949066871,-2108.64,0.00029041,2]
[359353415,1745949066880,-960.7,0.00029041,2]
[359353416,1745949066889,-2353.36,0.00029041,2]
[359353417,1745949066898,-470.0,0.00029041,2]
[359353418,1745949066908,-745.59,0.00029041,2]
[359353419,1745949066917,-545.5,0.00029041,2]
[359353420,1745949066926,-549.47,0.00029041,2]
[359353421,1745949066936,-470.0,0.00029041,2]
[359353422,1745949066948,-586.45,0.00029041,2]
[359353423,1745949067104,-470.0,0.00029041,2]
[359353424,1745949067115,-470.0,0.00029041,2]
[359353425,1745949067124,-770.83,0.00029041,2]
[359353426,1745949067134,-797.04,0.00029041,2]
[359353427,1745949067143,-543.81,0.00029041,2]
[359353428,1745949067153,-885.12,0.00029041,2]
[359353429,1745949067162,-470.0,0.00029041,2]
[359353430,1745949067171,-562.35,0.00029041,2]
[359353431,1745949067180,-476.24,0.00029041,2]
[359353432,1745949067190,-880.52,0.00029041,2]
[359353433,1745949067199,-915.71,0.00029041,2]
[359353434,1745949067209,-470.0,0.00029041,2]
[359353435,1745949067219,-820.44,0.00029041,2]
[359353436,1745949067229,-470.0,0.00029041,2]
[359353437,1745949067240,-470.0,0.00029041,2]
[359353438,1745949067251,-625.99,0.00029041,2]
[359353439,1745949067260,-470.0,0.00029041,2]
[359353440,1745949067270,-847.38,0.00029041,2]
[359353441,1745949067280,-568.66,0.00029041,2]
[359353442,1745949067290,-902.33,0.00029041,2]
[359353443,1745949067300,-486.67,0.00029041,2]
[359353444,1745949067310,-682.29,0.00029041,2]
[359353445,1745949067319,-3039.36,0.00029041,2]
[359353446,1745949067328,-474.23,0.00029041,2]
[359353447,1745949067338,-470.0,0.00029041,2]
[359353448,1745949067348,-470.0,0.00029041,2]
[359353449,1745949067357,-470.0,0.00029041,2]
[359353450,1745949067367,-613.1,0.00029041,2]
[359353451,1745949067376,-407.72875545,0.00029041,2]
[359353452,1745949067386,-151.0,0.00029041,7]
[359353453,1745949067395,-683.49,0.00029041,2]
[359353454,1745949067405,-470.0,0.00029041,2]
[359353455,1745949067415,-537.75,0.00029041,2]
[359353456,1745949067424,-595.72,0.00029041,2]
[359353457,1745949067433,-539.83,0.00029041,2]
[359353458,1745949067443,-470.0,0.00029041,2]
[359353459,1745949067452,-470.0,0.00029041,2]
[359353460,1745949067463,-470.0,0.00029041,2]
[359353461,1745949067472,-470.0,0.00029041,2]
[359353462,1745949067482,-6080.07,0.00029041,2]
[359353463,1745949067492,-481.77,0.00029041,2]
[359353464,1745949067502,-622.98,0.00029041,2]
[359353465,1745949067512,-520.98,0.00029041,2]
[359353466,1745949067521,-151.0,0.00029041,7]
[359353467,1745949067531,-470.0,0.00029041,2]
[359353468,1745949067540,-869.31,0.00029041,2]
[359353469,1745949067550,-704.81,0.00029041,2]
[359353470,1745949067560,-470.0,0.00029041,2]
[359353471,1745949067570,-233.35104821,0.00029041,2]
[359353472,1745949067580,-492.66,0.00029041,2]
[359353473,1745949067590,-12545.32,0.00029041,2]
[359353474,1745949067599,-783.52,0.00029041,2]
[359353475,1745949067609,-557.05,0.00029041,2]
[359353476,1745949067619,-470.0,0.00029041,2]
[359353477,1745949067628,-470.0,0.00029041,2]
[359353478,1745949067638,-531.21,0.00029041,2]
[359353479,1745949067647,-470.0,0.00029041,2]
[359353480,1745949067656,-488.6,0.00029041,2]
[359353481,1745949067665,-636.94,0.00029041,2]
[359353482,1745949067674,-1144.88,0.00029041,2]
[359353483,1745949067684,-470.0,0.00029041,2]
[359353484,1745949067693,-624.4,0.00029041,2]
[359353485,1745949067702,-650.35,0.00029041,2]
[359353486,1745949067711,-470.0,0.00029041,2]
[359353487,1745949067720,-673.11,0.00029041,2]
[359353488,1745949067729,-470.0,0.00029041,2]
[359353489,1745949067738,-470.0,0.00029041,2]
[359353490,1745949067747,-472.75,0.00029041,2]
[359353491,1745949067757,-470.0,0.00029041,2]
[359353492,1745949067766,-470.0,0.00029041,2]
[359353493,1745949067776,-6481.15,0.00029041,2]
[359353494,1745949067786,-505.43,0.00029041,2]
[359353495,1745949067795,-470.0,0.00029041,2]
[359353496,1745949067805,-470.0,0.00029041,2]
[359353497,1745949067814,-470.0,0.00029041,2]
[359353498,1745949067823,-470.0,0.00029041,2]
[359353499,1745949067833,-61295.82,0.00029041,2]
[359353500,1745949067844,-482.94,0.00029041,2]
[359353501,1745949067853,-606.96,0.00029041,2]
[359353502,1745949067864,-470.0,0.00029041,2]
[359353503,1745949067874,-470.0,0.00029041,2]
[359353504,1745949067884,-470.0,0.00029041,2]
[359353505,1745949067893,-470.0,0.00029041,2]
[359353506,1745949067904,-470.0,0.00029041,2]
[359353507,1745949067914,-586.56,0.00029041,2]
[359353508,1745949067924,-1001.6,0.00029041,2]
[359353509,1745949067933,-470.0,0.00029041,2]
[359353510,1745949067943,-470.0,0.00029041,2]
[359353511,1745949067953,-470.0,0.00029041,2]
[359353512,1745949067963,-7239.44,0.00029041,2]
[359353513,1745949067972,-470.0,0.00029041,2]
[359353514,1745949067982,-151.0,0.00029041,7]
[359353515,1745949067992,-470.0,0.00029041,2]
[359353516,1745949068001,-610.17,0.00029041,2]
[359353517,1745949068011,-470.0,0.00029041,2]
[359353518,1745949068020,-6805.43,0.00029041,2]
[359353519,1745949068030,-2927.0,0.00029041,2]
[359353520,1745949068045,-470.0,0.00029041,2]
[359353521,1745949068054,-470.0,0.00029041,2]
[359353522,1745949068064,-1097.76173594,0.0002909,2]
[359353523,1745949068075,-269.7,0.000292,2]
[359353524,1745949068086,-1183.48,0.000292,2]
[359353525,1745949068096,-2235.34,0.000292,2]
[359353526,1745949068107,-3402.46960673,0.00029298,2]
[359353527,1745949068124,-302.9300776,0.00029305,2]
[359353528,1745949068134,-568.59,0.00029313,2]
[359353529,1745949068144,-500.0,0.00029314,2]
[359353530,1745949068154,-3823.23,0.00029314,2]
[359353531,1745949068164,-2052.75,0.00029314,2]
[359353532,1745949068175,-2047.07,0.00029314,2]
[359353533,1745949068184,-175.298996,0.00029314,7]
[359353534,1745949068194,-519.67,0.00029315,2]
[359353535,1745949068203,-498.52,0.00029315,2]
[359353536,1745949068213,-470.0,0.00029315,2]
[359353537,1745949068223,-470.0,0.00029315,2]
[359353538,1745949068233,-470.0,0.00029315,2]
[359353539,1745949068242,-470.0,0.00029315,2]
[359353540,1745949068252,-537.97,0.00029315,2]
[359353541,1745949068263,-470.0,0.00029315,2]
[359353542,1745949068273,-470.0,0.00029315,2]
[359353543,1745949068283,-470.0,0.00029315,2]
[359353544,1745949068293,-470.0,0.00029315,2]
[359353545,1745949068303,-470.0,0.00029315,2]
[359353546,1745949068313,-1113.6,0.00029315,2]
[359353547,1745949068323,-470.0,0.00029315,2]
[359353548,1745949068333,-611.04,0.00029315,2]
[359353549,1745949068344,-470.0,0.00029315,2]
[359353550,1745949068354,-470.0,0.00029315,2]
[359353551,1745949068366,-631.2,0.00029315,2]
[359353552,1745949068376,-564.79,0.00029315,2]
[359353553,1745949068386,-151.0,0.00029315,7]
[359353554,1745949068396,-668.5,0.00029315,2]
[359353555,1745949068406,-826.62,0.00029315,2]
[359353556,1745949068416,-470.0,0.00029315,2]
[359353557,1745949068426,-470.0,0.00029315,2]
[359353558,1745949068437,-470.0,0.00029315,2]
[359353559,1745949068447,-470.0,0.00029315,2]
[359353560,1745949068457,-800.64,0.00029315,2]
[359353561,1745949068467,-470.0,0.00029315,2]
[359353562,1745949068477,-470.0,0.00029315,2]
[359353563,1745949068487,-502.1,0.00029315,2]
[359353564,1745949068497,-470.0,0.00029315,2]
[359353565,1745949068507,-470.0,0.00029315,2]
[359353566,1745949068517,-470.0,0.00029315,2]
[359353567,1745949068527,-2160.32,0.00029315,2]
[359353568,1745949068536,-470.0,0.00029315,2]
[359353569,1745949068546,-470.0,0.00029315,2]
[359353570,1745949068555,-1312.33,0.00029315,2]
[359353571,1745949068565,-470.0,0.00029315,2]
[359353572,1745949068575,-548.44,0.00029315,2]
[359353573,1745949068584,-151.0,0.00029315,7]
[359353574,1745949068594,-2312.86,0.00029315,2]
[359353575,1745949068603,-470.0,0.00029315,2]
[359353576,1745949068613,-470.0,0.00029315,2]
[359353577,1745949068622,-470.0,0.00029315,2]
[359353578,1745949068631,-484.25,0.00029315,2]
[359353579,1745949068641,-470.0,0.00029315,2]
[359353580,1745949068651,-470.0,0.00029315,2]
[359353581,1745949068660,-470.0,0.00029315,2]
[359353582,1745949068670,-470.0,0.00029315,2]
[359353583,1745949068679,-470.0,0.00029315,2]
[359353584,1745949068689,-470.0,0.00029315,2]
[359353585,1745949068698,-470.0,0.00029315,2]
[359353586,1745949068708,-5959.741954,0.00029315,2]
[359353587,1745949068717,-470.0,0.00029315,2]
[359353588,1745949068726,-470.0,0.00029315,2]
[359353589,1745949068735,-470.0,0.00029315,2]
[359353590,1745949068745,-470.0,0.00029315,2]
[359353591,1745949068755,-470.0,0.00029315,2]
[359353592,1745949068765,-470.0,0.00029315,2]
[359353593,1745949068775,-470.0,0.00029315,2]
[359353594,1745949068784,-470.0,0.00029315,2]
[359353595,1745949068794,-659.334822,0.00029315,2]
[359353596,1745949068804,-657.74,0.00029315,2]
[359353597,1745949068813,-486.33,0.00029315,2]
[359353598,1745949068823,-470.0,0.00029315,2]
[359353599,1745949068832,-470.0,0.00029315,2]
[359353600,1745949068841,-470.0,0.00029315,2]
[359353601,1745949068851,-437.515976,0.00029315,2]
[359353602,1745949068861,-481.29118587,0.00029315,2]
[359353603,1745949068871,-470.0,0.00029315,2]
[359353604,1745949068880,-542.45,0.00029315,2]
[359353605,1745949068889,-656.69,0.00029315,2]
[359353606,1745949068899,-552.91,0.00029315,2]
[359353607,1745949068908,-151.0,0.00029315,7]
[359353608,1745949068917,-470.0,0.00029315,2]
[359353609,1745949068926,-470.0,0.00029315,2]
[359353610,1745949068936,-470.0,0.00029315,2]
[359353611,1745949068945,-610.66,0.00029315,2]
[359353612,1745949068954,-470.0,0.00029315,2]
[359353613,1745949068963,-470.0,0.00029315,2]
[359353614,1745949068973,-558.47,0.00029315,2]
[359353615,1745949068982,-471.31,0.00029315,2]
[359353616,1745949068991,-1049.74,0.00029315,2]
[359353617,1745949069001,-470.0,0.00029315,2]
[359353618,1745949069010,-249.04179298,0.00029315,2]
[359353619,1745949069019,-566.36,0.00029315,2]
[359353620,1745949069028,-470.0,0.00029315,2]
[359353621,1745949069039,-470.0,0.00029315,2]
[359353622,1745949069050,-534.78,0.00029315,2]
[359353623,1745949069059,-563.33,0.00029315,2]
[359353624,1745949069068,-372.483872,0.00029315,2]
[359353625,1745949069078,-470.0,0.00029315,2]
[359353626,1745949069088,-470.0,0.00029315,2]
[359353627,1745949069097,-470.0,0.00029315,2]
[359353628,1745949069108,-557.82,0.00029315,2]
[359353629,1745949069117,-1537.22,0.00029315,2]
[359353630,1745949069127,-470.0,0.00029315,2]
[359353631,1745949069136,-496.59,0.00029315,2]
[359353632,1745949069146,-151.0,0.00029315,7]
[359353633,1745949069156,-204.705606,0.00029315,7]
[359353634,1745949069166,-236.88837382,0.00029315,2]
[359353635,1745949069175,-652.05,0.00029315,2]
[359353636,1745949069186,-470.0,0.00029315,2]
[359353637,1745949069195,-1146.41,0.00029315,2]
[359353638,1745949069205,-579.71,0.00029315,2]
[359353639,1745949069214,-470.0,0.00029315,2]
[359353640,1745949069223,-470.0,0.00029315,2]
[359353641,1745949069233,-470.0,0.00029315,2]
[359353642,1745949069242,-470.0,0.00029315,2]
[359353643,1745949069251,-704.42,0.00029315,2]
[359353644,1745949069260,-270.10383886,0.00029315,2]
[359353645,1745949069269,-470.0,0.00029315,2]
[359353646,1745949069278,-470.0,0.00029315,2]
[359353647,1745949069287,-470.0,0.00029315,2]
[359353648,1745949069296,-470.0,0.00029315,2]
[359353649,1745949069306,-470.0,0.00029315,2]
[359353650,1745949069315,-470.0,0.00029315,2]
[359353651,1745949069325,-625.71,0.00029315,2]
[359353652,1745949069334,-2279.31,0.00029315,2]
[359353653,1745949069344,-470.0,0.00029315,2]
[359353654,1745949069353,-151.0,0.00029315,7]
[359353655,1745949069367,-470.0,0.00029315,2]
[359353656,1745949069376,-470.0,0.00029315,2]
[359353657,1745949069386,-544.48,0.00029315,2]
[359353658,1745949069396,-254.784305,0.00029315,7]
[359353659,1745949069405,-904.77,0.00029315,2]
[359353660,1745949069415,-151.0,0.00029315,7]
[359353661,1745949069425,-1788.53,0.00029315,2]
[359353662,1745949069435,-510.11,0.00029315,2]
[359353663,1745949069444,-470.0,0.00029315,2]
[359353664,1745949069454,-470.0,0.00029315,2]
[359353665,1745949069464,-470.0,0.00029315,2]